Cogmind - Beta 11 @@@ ROGUE MODE // 2022.04.19 @ 21:20:00 Player: Yosh Result: Destroyed by S-27 Virus with Autogun Performance ------------- Evolutions (4) 2000 Regions Visited (12) 2400 Robots Destroyed (197) 985 Value Destroyed (6116) 6116 Prototype IDs (15) 300 Alien Tech Used (1) 200 Bonus (1886) 1886 TOTAL SCORE: 13887 Bonus ------- High Alert Combat Kills 1282 Follower Combat Kills 324 Met Data Miner 300 Friendly Fire -20 Cogmind --------- Core Integrity 0/850 Matter 174/300 Energy 25/100 System Corruption 15% Temperature Cool (0) Movement Core (50) Location -6/Cetus Parts ------- > --- POWER (2) -------- (None) > --- PROPULSION (4) --- (None) > --- UTILITY (6) ------ Coolant Injector Enhanced Optical Array Graphene Brace > --- WEAPON (4) ------- (None) > --- INVENTORY (5) ---- Long-range Tractor Beam Heavy Plasma Cannon Gauss Rifle Hypervelocity Gauss Rifle Long-range Missile Launcher Peak State ------------ > --- POWER ------------ Improved Deuterium Engine Cold Fusion Reactor > --- PROPULSION ------- Heavy Siege Treads Heavy Siege Treads > --- UTILITY ---------- Huge Storage Unit Enhanced Optical Array Improved Targeting Computer Improved Heavy Armor Plating Light Regenerative Plating > --- WEAPON ----------- Heavy Assault Rifle Improved Assault Rifle Guided EMP Blaster > --- INVENTORY -------- Armored Treads Armored Treads Matter Compressor Makeshift Salvage Targeting Computer Improved Heavy Armor Plating Graphene Brace Authchip [Propulsion] Long-range Tractor Beam Long-range Tractor Beam Drone Bay Arc Projector Improved EM Pulse Cannon Improved Assault Rifle Minigun Gauss Rifle Gauss Rifle Gauss Rifle Coil Gun Hypervelocity Gauss Rifle Hypervelocity Gauss Rifle KE Penetrator Long-range Missile Launcher Long-range Missile Launcher Plasma Cutter [Rating: 89] Favorites ----------- Power Improved Deuterium Engine Engine Improved Deuterium Engine Power Core Nuclear Core Reactor Cold Fusion Reactor Propulsion Advanced Treads Treads Advanced Treads Utility Huge Storage Unit Device Experimental Sensor Array Storage Huge Storage Unit Processor Improved Targeting Computer Hackware Hacking Suite Protection Medium Armor Plating Weapon Improved Assault Rifle Energy Gun Medium Laser Energy Cannon Heavy Plasma Cannon Ballistic Gun Improved Assault Rifle Launcher Long-range Missile Launcher Build | -11 -10 -10 -9 -8 -7 -7 -7 -7 -6 -6 -6 -6 ------- Run | Scr Mat Min Mat Mat Fac Low Low Dat Pro Fac Ext Cet Slots Evolved 8 | . . . 2 2 2 . . . . 2 . . Power . | . . . . . . . . . . . . . Propulsion 2 | . . . 1 . 1 . . . . . . . Utility 4 | . . . 1 1 . . . . . 2 . . Weapon 2 | . . . . 1 1 . . . . . . . Parts Attached 253 | 7 9 6 53 31 6 8 5 . 4 75 37 12 Power 17 | 1 . . 2 3 1 1 . . . 3 6 . Engine 14 | 1 . . 2 2 1 1 . . . 1 6 . Core 2 | . . . . 1 . . . . . 1 . . Reactor 1 | . . . . . . . . . . 1 . . Propulsion 39 | 2 1 2 12 8 1 . . . . 11 . 2 Treads 39 | 2 1 2 12 8 1 . . . . 11 . 2 Leg . | . . . . . . . . . . . . . Wheel . | . . . . . . . . . . . . . Hover . | . . . . . . . . . . . . . Flight . | . . . . . . . . . . . . . Utility 110 | 2 3 2 23 13 2 5 3 . 2 31 19 5 Device 47 | 1 . 1 6 4 1 3 2 . 1 14 11 3 Storage 6 | 1 3 . 1 1 . . . . . . . . Processor 4 | . . . 3 . . . . . . 1 . . Hackware 5 | . . . . 1 . . . . . 3 . 1 Protection 48 | . . 1 13 7 1 2 1 . 1 13 8 1 Artifact . | . . . . . . . . . . . . . Weapon 87 | 2 5 2 16 7 2 2 2 . 2 30 12 5 Energy Gun 12 | 2 3 1 5 . . . . . . . . 1 Energy Cannon 11 | . . . . . . . 1 . . 8 1 1 Ballistic Gun 48 | . 2 1 6 6 2 1 1 . 2 17 8 2 Ballistic Cannon . | . . . . . . . . . . . . . Launcher 16 | . . . 5 1 . 1 . . . 5 3 1 Special Weapon . | . . . . . . . . . . . . . Impact Weapon . | . . . . . . . . . . . . . Slashing Weapon . | . . . . . . . . . . . . . Piercing Weapon . | . . . . . . . . . . . . . Special Melee Weapon . | . . . . . . . . . . . . . Unidentified Prototypes 5 | . . . 1 1 . 1 . . . 2 . . Corrupted Parts 4 | . . 1 2 . . . . . 1 . . . System Corruption 10 | . . 3 6 . . . . . 1 . . . Parts Lost 28 | . . 1 1 2 . . . . . 3 9 12 Power 4 | . . . . . . . . . . 1 2 1 Propulsion 5 | . . . . 1 . . . . . . . 4 Utility 8 | . . . . . . . . . . 2 3 3 Weapon 11 | . . 1 1 1 . . . . . . 4 4 Highest Loss Streak 12 | . . 1 1 1 . . . . . 1 6 12 To Critical Strikes 1 | . . . . . . . . . . . 1 . Average Slot Usage (%) 95 | . 97 95 99 99 100 99 100 100 100 91 80 50 Engine 9 | . 14 14 11 7 7 7 14 14 14 7 8 4 Reactor 1 | . . . . . . . . . . 4 3 . Treads 25 | . 28 28 32 26 30 29 28 28 28 21 12 9 Device 5 | . 14 13 5 4 2 6 6 7 6 4 2 12 Storage 8 | . 14 14 11 9 7 7 7 7 7 6 6 5 Processor 8 | . . . 8 9 7 7 7 7 7 10 11 6 Protection 8 | . . . 8 11 7 7 7 7 7 8 9 3 Energy Gun 2 | . 14 14 7 . . . . . . . . 4 Ballistic Gun 22 | . 11 9 13 27 30 29 27 28 28 23 23 . Naked Turns . | . . . . . . . . . . . . . Heaviest Build 146 | 12 28 30 102 108 117 124 125 118 124 146 146 109 Greatest Support 140 | 40 40 42 62 67 89 89 89 89 89 140 140 140 Greatest Overweight (x) 29 | 1 . 1 29 1 1 1 1 1 1 1 1 2 Average Overweight (x) . | . . . 1 1 1 1 1 1 1 . . . Largest Inventory Capacity 25 | 8 25 15 25 25 25 25 25 25 25 25 25 25 Average Capacity 24 | 6 12 15 24 25 25 25 25 25 25 25 25 23 Most Carried 25 | 5 9 15 25 25 25 25 25 25 25 25 25 24 Average Carried 23 | 3 8 13 23 24 24 24 24 25 25 24 24 17 Final Capacity 25 | 8 15 15 25 25 25 25 25 25 25 25 25 5 Final Carried 25 | 5 9 14 25 25 25 24 25 25 25 25 25 5 Class Distribution -------------------- 46% | Gunner 17% | Mutant 12% | Scavenger-Mutant 10% | Tank 7% | Scavenger-Gunner 4% | Scavenger-Tank Dominant Class ---------------- Mutant | -10/Materials Mutant | -10/Mines Scavenger-Mutant | -9/Materials Tank | -8/Materials Gunner | -7/Factory Gunner | -7/Lower Caves Gunner | -7/Lower Caves Gunner | -7/Data Miner Gunner | -6/Proximity Caves Gunner | -6/Factory Gunner | -6/Extension Mutant | -6/Cetus Resources | -11 -10 -10 -9 -8 -7 -7 -7 -7 -6 -6 -6 -6 ----------- Run | Scr Mat Min Mat Mat Fac Low Low Dat Pro Fac Ext Cet Matter Collected 6875 | 260 102 82 1351 979 177 123 133 . 54 2299 1315 . Remotely 1044 | . . . 189 173 . . . . . 275 407 . Salvage Created 7486 | 31 109 46 2157 1726 231 97 55 . 27 2069 863 75 Parts 458 | 2 16 5 160 87 9 5 4 . 1 115 49 5 Haulers Intercepted 18 | . . . 5 5 . . . . . 6 2 . Recyclers Shooed 5 | . . . 2 . . . . . . 2 1 . Parts Field Recycled . | . . . . . . . . . . . . . Retrieved Matter . | . . . . . . . . . . . . . Parts Self-Destructed 18 | . . . . . . 5 1 . 12 . . . Prevented 7 | . . . . . . . 7 . . . . . Kills | -11 -10 -10 -9 -8 -7 -7 -7 -7 -6 -6 -6 -6 ------- Run | Scr Mat Min Mat Mat Fac Low Low Dat Pro Fac Ext Cet Combat Hostiles Destroyed 133 | . 4 3 50 25 4 2 1 . 1 25 14 4 Guns 92 | . 4 3 30 25 4 2 . . 1 15 8 . Cannons 2 | . . . . . . . 1 . . 1 . . AOE 39 | . . . 20 . . . . . . 9 6 4 Classes Destroyed 19 | 1 3 . 8 2 . . . . . 4 1 . Worker 13 | . . . 9 1 . . . . . 3 . . Builder 10 | . . . 3 1 . . . . . 4 2 . Tunneler 6 | 2 . . 2 . . . . . . . 2 . Hauler 18 | . . . 5 5 . . . . . 6 2 . Recycler 5 | . . . 1 1 . . . . . 2 1 . Operator 3 | . . . . 2 . . . . . . 1 . Watcher 9 | . 1 . 3 2 . . . . . 3 . . Swarmer 27 | . 3 3 7 . . . . . 1 6 4 3 Saboteur 1 | . . . . . . . . . . 1 . . Grunt 58 | . 1 . 24 15 3 2 . . . 7 6 . Brawler 3 | . . . 2 1 . . . . . . . . Duelist 7 | . . . 6 1 . . . . . . . . Protector 3 | . . . 3 . . . . . . . . . Sentry 19 | . . . 8 7 1 . . . . 2 1 . Specialist 2 | . . . . . . . . . . 2 . . Hunter 3 | . . . . 1 . . 1 . . 1 . . Programmer 6 | . . . . . . . . . . 5 1 . Heavy 1 | . . . . . . . . . . 1 . . Behemoth 2 | . . . . . . . . . . . 2 . Cetus Guard 1 | . . . . . . . . . . . . 1 Best Kill Streak 16 | 2 3 3 16 6 3 2 1 . 1 9 9 4 Combat Bots Only 14 | . 3 3 14 4 3 2 1 . 1 5 4 4 Max Kills in Single Turn 4 | 1 2 1 4 2 1 1 1 . 1 3 3 4 Gunslinging 1 | . 1 . . . . . . . . . 1 . Exploded 4 | . . . 3 . . . . . . 3 3 4 Melee . | . . . . . . . . . . . . . Uniques/NPCs Destroyed . | . . . . . . . . . . . . . Combat | -11 -10 -10 -9 -8 -7 -7 -7 -7 -6 -6 -6 -6 -------- Run | Scr Mat Min Mat Mat Fac Low Low Dat Pro Fac Ext Cet Damage Taken 10198 | . 165 140 1406 1364 133 24 104 . . 2224 2771 1867 Core 1168 | . 24 7 101 143 2 12 15 . . 223 214 427 Absorbed by Shields 231 | . . . . 52 44 8 . . . . 127 . Reduced by Siege Mode 305 | . . . . . . . . . . . 257 48 Regen/Repaired (Parts) 225 | . . . 11 . . . . . . 77 118 19 Core Remaining (%) 86 | 100 . 87 74 74 . . . . 95 . . . Volleys Fired 440 | 3 13 7 120 86 7 7 6 . 1 120 58 12 Largest 4 | 1 2 2 2 3 4 4 1 . 4 4 4 2 Hottest 159 | 50 80 90 115 71 94 94 56 . 94 159 111 124 Shots Fired 1138 | 3 23 13 220 246 28 16 6 . 4 367 197 15 Gun 1067 | 3 23 13 207 244 28 12 . . 4 339 185 9 Cannon 35 | . . . . . . . 6 . . 22 2 5 Launcher 36 | . . . 13 2 . 4 . . . 6 10 1 Special . | . . . . . . . . . . . . . Kinetic 978 | . 7 3 151 244 28 12 . . 4 339 185 5 Thermal 97 | 3 10 7 53 . . . . . . 22 2 . Explosive 36 | . . . 13 2 . 4 . . . 6 10 1 Electromagnetic 27 | . 6 3 3 . . . 6 . . . . 9 Robot Hit Streak 37 | 3 3 3 37 27 26 16 20 . 2 34 25 5 Robot Miss Streak 5 | . 5 3 5 3 1 . 1 . 1 5 3 2 Penetration Max 1 | . . . . . . . . . . . 1 . Secondary Targets 15 | . 1 2 2 3 . . . . . 6 1 . Max Gunslinging Chain 1 | . 1 1 1 1 . . . . . 1 1 . Shots Hit Robots 783 | 3 11 7 149 183 22 9 5 . 2 234 148 10 Core Hits 380 | 2 6 3 107 76 10 4 2 . 1 101 56 12 Critical Kills 2 | . . . . 1 . . . . . 1 . . Critical Parts Destroyed 3 | . . . . 1 . . . . . 2 . . Critical Strikes 14 | . . 2 3 2 . . . . . 3 2 2 Burn 5 | . . 2 3 . . . . . . . . . Destroy 9 | . . . . 2 . . . . . 3 2 2 Melee Attacks . | . . . . . . . . . . . . . Impact . | . . . . . . . . . . . . . Slashing . | . . . . . . . . . . . . . Piercing . | . . . . . . . . . . . . . Sneak Attacks . | . . . . . . . . . . . . . Combat Hostiles . | . . . . . . . . . . . . . Follow-up Attacks . | . . . . . . . . . . . . . Damage Inflicted 19042 | 38 139 90 4731 2841 350 138 113 . 30 5175 4311 1086 Guns 12477 | 38 137 90 2396 2813 350 138 . . 30 3755 2684 46 Cannons 343 | . . . . . . . 113 . . 109 . 121 Explosions 6088 | . . . 2315 . . . . . . 1270 1584 919 Melee . | . . . . . . . . . . . . . Ramming 134 | . 2 . 20 28 . . . . . 41 43 . Kinetic 11537 | . 28 20 1701 2813 350 138 . . 30 3755 2684 18 Thermal 1809 | 38 75 48 954 . . . . . . 109 . 585 Explosive 5037 | . . . 2019 . . . . . . 1100 1584 334 Electromagnetic 525 | . 34 22 37 . . . 113 . . 170 . 149 Impact . | . . . . . . . . . . . . . Slashing . | . . . . . . . . . . . . . Piercing . | . . . . . . . . . . . . . Highest Corruption 15 | . . 4 6 . . . . . 1 2 15 15 Average Corruption 2 | . . 3 2 . . . . . 1 1 1 15 Corruption Purged 5 | . . . . . . . . . . 2 3 . Corruption Blocked . | . . . . . . . . . . . . . Effects 64 | . . 13 25 . . . . . . 17 4 5 Message Errors 12 | . . 4 3 . . . . . . 3 1 1 Matter Fused 21 | . . 6 11 . . . . . . 4 . . Heat Flow Errors 4 | . . 1 2 . . . . . . 1 . . Energy Discharges 9 | . . 1 3 . . . . . . 2 . 3 Data Loss (minor) 8 | . . 1 4 . . . . . . 3 . . Data Loss (major) 4 | . . . . . . . . . . 3 1 . Misfires 3 | . . . 1 . . . . . . 1 1 . Alerts 1 | . . . 1 . . . . . . . . . Weapon Failures 2 | . . . . . . . . . . . 1 1 Overload Shots . | . . . . . . . . . . . . . Overflow Damage 189 | . . . 58 . . . . . . 42 54 35 Projectiles . | . . . . . . . . . . . . . Explosions 189 | . . . 58 . . . . . . 42 54 35 Melee . | . . . . . . . . . . . . . Knockbacks 1 | . . . . . . . . . . 1 . . Impact 1 | . . . . . . . . . . 1 . . Kinetic . | . . . . . . . . . . . . . Secondary . | . . . . . . . . . . . . . Self-Inflicted Damage 300 | . . . 123 . . . . . . 130 47 . Shots 9 | . . . 5 . . . . . . 3 1 . Rammed 17 | . 1 . 2 5 . . . . . 4 5 . Targets Rammed 19 | . 1 . 3 5 . . . . . 5 5 . Kicked . | . . . . . . . . . . . . . Crushed 2 | . . . 1 . . . . . . 1 . . Highest Temperature 372 | 30 93 148 267 200 63 51 120 . 39 231 372 199 Average Temperature 61 | 16 35 66 66 31 32 23 61 . 22 46 89 96 Received Heat Transfer 2379 | . 39 . 435 648 75 12 . . . 369 522 279 Effects 5 | . . . 3 . . . . . . . 2 . Energy Bleed 1 | . . . . . . . . . . . 1 . Interference 4 | . . . 3 . . . . . . . 1 . Siege Activations 4 | . . . . . . . . . . . 3 1 Total Turns 102 | . . . . . . . . . . . 99 3 Longest Duration 48 | . . . . . . . . . . . 48 3 Robots Corrupted . | . . . . . . . . . . . . . Combat Hostiles . | . . . . . . . . . . . . . Parts Fried 1 | . . . . . . . . . . 1 . . Impact Corruptions . | . . . . . . . . . . . . . Robots Melted . | . . . . . . . . . . . . . Combat Hostiles . | . . . . . . . . . . . . . Parts Melted 2 | . . 2 . . . . . . . . . . Heat Transferred 2823 | 111 222 296 1644 . . . . . . 150 . 400 Parts Sabotaged 4 | . . . . . . . . . . . 4 . Parts Stolen . | . . . . . . . . . . . . . Parts Stripped . | . . . . . . . . . . . . . Power Chain Reactions 2 | . . . . . . . . . . . . 2 Missiles Intercepted . | . . . . . . . . . . . . . Alert | -11 -10 -10 -9 -8 -7 -7 -7 -7 -6 -6 -6 -6 ------- Run | Scr Mat Min Mat Mat Fac Low Low Dat Pro Fac Ext Cet Peak Influence 1388 | 10 128 60 1388 770 427 . . . . 613 620 299 Initial 586 | . 6 . . 586 321 . . . . 54 300 257 Average 409 | 1 55 16 597 586 368 . . . . 308 474 260 Maximum Alert Level 4 | . . . 4 3 2 . . . . 2 2 1 Low Security (%) 23 | 100 100 100 18 . . . . . . 23 . . Level 1 27 | . . . 9 10 64 . . . . 56 7 100 Level 2 36 | . . . 29 72 35 . . . . 19 92 . Level 3 11 | . . . 37 17 . . . . . . . . Level 4 1 | . . . 5 . . . . . . . . . Level 5 . | . . . . . . . . . . . . . High Security . | . . . . . . . . . . . . . Max Security . | . . . . . . . . . . . . . Sterilizations 1 | . . . 1 . . . . . . . . . Squads Dispatched 34 | . 1 . 10 6 1 . . . . 14 2 . Investigation 9 | . 1 . 1 2 . . . . . 5 . . Extermination 5 | . . . . . 1 . . . . 4 . . Reinforcement 12 | . . . 5 2 . . . . . 4 1 . Assault 8 | . . . 4 2 . . . . . 1 1 . Garrison . | . . . . . . . . . . . . . Intercept . | . . . . . . . . . . . . . Searches Triggered . | . . . . . . . . . . . . . Data Miner Redirects 3 | . . . . . . . . . . 3 . . Construction Impeded 2 | . . . . . . . . . . 1 1 . Haulers Reinforced . | . . . . . . . . . . . . . Active Scanning Responses . | . . . . . . . . . . . . . Cargo Convoy Interrupts . | . . . . . . . . . . . . . Stealth | -11 -10 -10 -9 -8 -7 -7 -7 -7 -6 -6 -6 -6 --------- Run | Scr Mat Min Mat Mat Fac Low Low Dat Pro Fac Ext Cet Distress Signals 12 | . . . 5 3 . . . . . 1 2 1 Communications Jammed 2 | . . . . . . . . . . 2 . . Distress Signals 2 | . . . . . . . . . . 2 . . Times Spotted 240 | . 7 3 83 50 4 3 3 . 3 45 25 14 Peak Tracking Total 13 | . 3 3 10 13 3 2 3 . 3 5 5 9 Tactical Retreats 6 | . . . 3 2 . . . . . . 1 . Traps | -11 -10 -10 -9 -8 -7 -7 -7 -7 -6 -6 -6 -6 ------- Run | Scr Mat Min Mat Mat Fac Low Low Dat Pro Fac Ext Cet Traps Triggered 4 | . 1 . 1 . . . . . . 1 1 . Indirectly . | . . . . . . . . . . . . . Trap Hack Attempts . | . . . . . . . . . . . . . Triggered . | . . . . . . . . . . . . . Disarmed . | . . . . . . . . . . . . . Reprogrammed . | . . . . . . . . . . . . . Reused . | . . . . . . . . . . . . . Traps Extracted . | . . . . . . . . . . . . . Installed . | . . . . . . . . . . . . . Triggered 1 | . . . . . . . 1 . . . . . Exploded 1 | . . . . . . . . . . 1 . . Machines | -11 -10 -10 -9 -8 -7 -7 -7 -7 -6 -6 -6 -6 ---------- Run | Scr Mat Min Mat Mat Fac Low Low Dat Pro Fac Ext Cet Machines Disabled 12 | . . . 5 . . . . . . 4 3 . Max in Single Turn 2 | . . . 2 . . . . . . 2 1 . Garrison Access 2 | . . . . 1 . . . . . 1 . . Machines Sabotaged . | . . . . . . . . . . . . . Garrisons Compromised . | . . . . . . . . . . . . . Overloaded Fab Kills . | . . . . . . . . . . . . . Hacking | -11 -10 -10 -9 -8 -7 -7 -7 -7 -6 -6 -6 -6 --------- Run | Scr Mat Min Mat Mat Fac Low Low Dat Pro Fac Ext Cet Machines Accessed 42 | . 3 1 10 9 1 1 . 4 . 13 . . Terminals 20 | . 2 . 6 6 1 . . . . 5 . . Fabricators 2 | . . . . . . . . . . 2 . . Repair Stations 3 | . . . 2 . . . . . . 1 . . Recycling Units 6 | . 1 . 1 2 . . . . . 2 . . Scanalyzers 2 | . . . 1 . . . . . . 1 . . Garrison Access 3 | . . . . 1 . . . . . 2 . . Total Hacks 139 | . 7 1 31 28 5 1 . 32 . 34 . . Successful 89 | . 2 1 14 17 2 1 . 32 . 20 . . Failed 50 | . 5 . 17 11 3 . . . . 14 . . Catastrophic 12 | . 1 . 2 2 . . . . . 7 . . Database Lockouts . | . . . . . . . . . . . . . Manual 41 | . 5 . 13 10 5 . . . . 8 . . Terminals 68 | . 6 . 20 23 5 . . . . 14 . . Fabricators 10 | . . . . . . . . . . 10 . . Repair Stations 8 | . . . 6 . . . . . . 2 . . Recycling Units 7 | . 1 . 1 2 . . . . . 3 . . Scanalyzers 7 | . . . 4 . . . . . . 3 . . Garrison Access 5 | . . . . 3 . . . . . 2 . . Terminal Hacks 60 | . 1 1 7 13 2 1 . 32 . 3 . . Record 12 | . . . . 1 . . . 11 . . . . Part Schematic 12 | . . . . . . . . 12 . . . . Robot Schematic 6 | . . . . . . . . 6 . . . . Prototype ID Bank 3 | . . . . . . . . 3 . . . . Open Door 2 | . . 1 . . . 1 . . . . . . Level Access Points 1 | . . . . 1 . . . . . . . . Branch Access Points 2 | . . . . 1 1 . . . . . . . Terminal Index 2 | . . . . 1 1 . . . . . . . Fabricator Index 1 | . . . . . . . . . . 1 . . Alert Level 4 | . . . 1 3 . . . . . . . . Unreport Threat 3 | . . . 1 2 . . . . . . . . Locate Traps 1 | . . . . . . . . . . 1 . . Hauler Manifests 3 | . 1 . 1 1 . . . . . . . . Registered Components 2 | . . . 1 1 . . . . . . . . Zone Layout 6 | . . . 3 2 . . . . . 1 . . Fabricator Hacks 8 | . . . . . . . . . . 8 . . Load Schematic 5 | . . . . . . . . . . 5 . . Build 3 | . . . . . . . . . . 3 . . Repair Station Hacks 6 | . . . 4 . . . . . . 2 . . Scan Component 4 | . . . 3 . . . . . . 1 . . Repair 2 | . . . 1 . . . . . . 1 . . Recycling Unit Hacks 3 | . 1 . . . . . . . . 2 . . Report Inventory 1 | . 1 . . . . . . . . . . . Retrieve Components 2 | . . . . . . . . . . 2 . . Scanalyzer 3 | . . . 1 . . . . . . 2 . . Insert Component 3 | . . . 1 . . . . . . 2 . . Garrison Access Hacks 2 | . . . . 1 . . . . . 1 . . Seal Access 2 | . . . . 1 . . . . . 1 . . Unauthorized Hacks 7 | . . . 2 3 . . . . . 2 . . Terminals 2 | . . . 1 1 . . . . . . . . Botnet 2 | . . . 1 1 . . . . . . . . Fabricators 2 | . . . . . . . . . . 2 . . Recompile 2 | . . . . . . . . . . 2 . . Repair Stations . | . . . . . . . . . . . . . Recycling Units 3 | . . . 1 2 . . . . . . . . Tunnel 3 | . . . 1 2 . . . . . . . . Scanalyzers . | . . . . . . . . . . . . . Garrison Access . | . . . . . . . . . . . . . Data Cores Recovered . | . . . . . . . . . . . . . Used . | . . . . . . . . . . . . . Hacking Detections 27 | . 2 . 8 6 1 . . . . 10 . . Full Trace Events 3 | . . . 1 . . . . . . 2 . . Feedback Events . | . . . . . . . . . . . . . Feedback Blocked . | . . . . . . . . . . . . . Robot Schematics Acquired 6 | . . . . . . . . 6 . . . . Robots Built . | . . . . . . . . . . . . . Authchips . | . . . . . . . . . . . . . Time . | . . . . . . . . . . . . . Total Robot Build Rating . | . . . . . . . . . . . . . Part Schematics Acquired 12 | . . . . . . . . 12 . . . . Parts Built 4 | . . . . . . . . . . 4 . . Authchips 2 | . . . . . . . . . . 2 . . Time 375 | . . . . . . . . . . 375 . . Total Part Build Rating 25 | . . . . . . . . . . 25 . . Parts Repaired 2 | . . . 1 . . . . . . 1 . . Time 152 | . . . 136 . . . . . . 16 . . Parts Recycled . | . . . . . . . . . . . . . Recycled Matter . | . . . . . . . . . . . . . Retrieved Matter . | . . . . . . . . . . . . . Retrieved Components 3 | . . . . . . . . . . 3 . . Parts Scanalyzed 2 | . . . 1 . . . . . . 1 . . Part Schematics Acquired . | . . . . . . . . . . . . . Parts Damaged . | . . . . . . . . . . . . . Bothacking | -11 -10 -10 -9 -8 -7 -7 -7 -7 -6 -6 -6 -6 ------------ Run | Scr Mat Min Mat Mat Fac Low Low Dat Pro Fac Ext Cet Used RIF Installer . | . . . . . . . . . . . . . Robots Hacked . | . . . . . . . . . . . . . Non-combat . | . . . . . . . . . . . . . Combat . | . . . . . . . . . . . . . Robot Hacks Applied . | . . . . . . . . . . . . . Relay Couplers Released . | . . . . . . . . . . . . . Fabnet Peak Effective % . | . . . . . . . . . . . . . Robots Rewired . | . . . . . . . . . . . . . Allies Hacked . | . . . . . . . . . . . . . Hacks Repelled . | . . . . . . . . . . . . . Allies | -11 -10 -10 -9 -8 -7 -7 -7 -7 -6 -6 -6 -6 -------- Run | Scr Mat Min Mat Mat Fac Low Low Dat Pro Fac Ext Cet Total Allies 2 | . . . . . . . . . 1 . 1 . Largest Group 1 | . . . . . . . . . 1 1 1 . Highest-Rated Group 96 | . . . . . . . . . 96 96 20 . Highest-Rated Ally 96 | . . . . . . . . . 96 96 20 . Total Orders 7 | . . . . . . . . . . 6 1 . EXPLORE 6 | . . . . . . . . . . 5 1 . RETURN 1 | . . . . . . . . . . 1 . . Ally Attacks 26 | . . . . . . . . . 5 16 5 . Total Damage 992 | . . . . . . . . . 264 612 116 . Kills 12 | . . . . . . . . . 3 6 3 . Allies Corrupted . | . . . . . . . . . . . . . Allies Melted . | . . . . . . . . . . . . . Intel | -11 -10 -10 -9 -8 -7 -7 -7 -7 -6 -6 -6 -6 ------- Run | Scr Mat Min Mat Mat Fac Low Low Dat Pro Fac Ext Cet Robot Analysis Total . | . . . . . . . . . . . . . Derelict Logs Recovered 5 | . . 1 . . . 2 1 . 1 . . . Drone Launches 6 | . . . . . . . . . . 5 1 . Drone Recoveries 5 | . . . . . . . . . . 4 1 . Exploration | -11 -10 -10 -9 -8 -7 -7 -7 -7 -6 -6 -6 -6 ------------- Run | Scr Mat Min Mat Mat Fac Low Low Dat Pro Fac Ext Cet Turns Passed 16334 | 86 616 555 2573 2097 289 1837 1642 265 1004 4212 1072 86 Spaces Moved 6253 | 46 316 313 802 688 110 780 676 117 429 1590 364 22 Core 18 | 9 . . 1 . . . . . . . . 8 Treads 6235 | 37 316 313 801 688 110 780 676 117 429 1590 364 14 Legs . | . . . . . . . . . . . . . Wheels . | . . . . . . . . . . . . . Hover . | . . . . . . . . . . . . . Flight . | . . . . . . . . . . . . . Fastest Speed 50 | 50 160 152 235 230 228 228 228 228 228 180 180 50 Average Speed 218 | 142 160 153 240 231 228 228 228 228 228 224 191 139 Slowest Speed 1500 | 160 160 225 1500 240 228 228 228 228 228 270 270 330 Overloaded Moves . | . . . . . . . . . . . . . Propulsion Burnouts . | . . . . . . . . . . . . . Robots Hopped . | . . . . . . . . . . . . . Cave-ins Triggered 1 | . . . . . . . . . . . 1 . Exploration Rate (%) 55 | 5 36 76 77 64 4 81 84 74 74 55 71 19 Regions Visited 12 Branch Regions 7 Pre-discovered Areas 5 | . . 1 1 2 . . . 1 . . . . Known Exits Taken 4 | . . . . 1 1 1 . . . 1 . . Unknown Exits Taken 8 | 1 1 1 1 . . . 1 1 1 . 1 . Scrap Searched 8 | . . 2 . . . 3 2 . 1 . . . Spaces Dug 68 | . . . 20 20 . 3 . . . 24 1 . Terrain Destroyed 450 | . . . 108 20 . 25 . . . 109 141 47 Melee . | . . . . . . . . . . . . . Projectile 26 | . . . . . . . . . . 18 8 . AOE 424 | . . . 108 20 . 25 . . . 91 133 47 Terrain Rammed . | . . . . . . . . . . . . . Walls Destroyed . | . . . . . . . . . . . . . Machines Disabled . | . . . . . . . . . . . . . Actions | -11 -10 -10 -9 -8 -7 -7 -7 -7 -6 -6 -6 -6 --------- Run | Scr Mat Min Mat Mat Fac Low Low Dat Pro Fac Ext Cet Total 8042 | 60 404 374 1232 1019 134 830 771 116 451 1992 598 61 Wait 763 | . 48 43 170 146 3 22 82 . 18 113 106 12 Move 6242 | 45 315 312 801 687 109 779 675 116 428 1589 364 22 Hop . | . . . . . . . . . . . . . Pick Up 156 | 4 10 6 43 29 5 6 2 . . 36 14 1 Fast Attach 45 | 7 2 1 5 5 1 2 . . . 16 6 . Attach 38 | . 1 2 3 6 2 1 . . . 5 7 11 Detach 6 | 1 1 . . . 1 . . . . 2 1 . Swap 171 | . 6 3 45 20 3 6 5 . 4 54 24 1 Drop 163 | . 7 . 42 35 3 7 1 . . 52 14 2 Fire 440 | 3 13 7 120 86 7 7 6 . 1 120 58 12 Melee . | . . . . . . . . . . . . . Ram . | . . . . . . . . . . . . . Kick . | . . . . . . . . . . . . . Crush 18 | . 1 . 3 5 . . . . . 5 4 . Escape Stasis . | . . . . . . . . . . . . . Rewire . | . . . . . . . . . . . . . Trap . | . . . . . . . . . . . . . Miscellaneous . | . . . . . . . . . . . . . Route ------- -11/Scrapyard -10/Materials -10/Mines (discovered 2 exits: *Mat x2) -9/Materials (discovered 4 exits: *Mat / [*Min x2] / [*Sto]) -8/Materials (discovered 3 exits: *Fac x3) -7/Factory (discovered 2 exits: *Low x2) -7/Lower Caves -7/Lower Caves (discovered 2 exits: *Fac / *Dat) -7/Data Miner -6/Proximity Caves -6/Factory (discovered 5 exits: [*Fac x2] / *Low / *Ext x2) -6/Extension (discovered 3 exits: [*Fac x2] / [*Cet]) -6/Cetus History --------- Turn | Location | Event 8 | -11/Scrapyard | Discovered new exit (range 15) 87 | -11/Scrapyard | Entered Materials 274 | -10/Materials | Discovered new exit (range 7) 326 | -10/Materials | Build established: Mutant 703 | -10/Materials | Entered Mines 743 | -10/Mines | Met a Derelict who couldn't figure out how to use a Trap Extractor 756 | -10/Mines | Met a Derelict bent on vengeance 927 | -10/Mines | Found a hidden stash of uninstalled traps 989 | -10/Mines | Learned Materials terminal intel 1138 | -10/Mines | Learned location of Storage (-9) 1169 | -10/Mines | Discovered new exit (range 10) 1183 | -10/Mines | Found a damaged Exp. Sensor Array with a note attached 1186 | -10/Mines | Found Prototype Device 1244 | -10/Mines | Discovered new exit (range 10) 1258 | -10/Mines | Entered Materials 1258 | -9/Materials | Evolved 2 slots: Propulsion x1, Utility x1 1259 | -9/Materials | Loaded intel: 12 terminal locations 1544 | -9/Materials | Identified Exp. Sensor Array 1751 | -9/Materials | Discovered new exit (range 15) 2058 | -9/Materials | First assault squad dispatched 2117 | -9/Materials | Destroyed 7 combat bots 2162 | -9/Materials | Build established: Scavenger-Mutant 2206 | -9/Materials | Discovered new exit (range 15) 2700 | -9/Materials | Discovered new exit (range 7) 3325 | -9/Materials | Discovered new exit (range 15) 3582 | -9/Materials | Repaired Broken Exp. Sensor Array? 3739 | -9/Materials | Destroyed 14 combat bots 3743 | -9/Materials | Sterilization system engaged 3743 | -9/Materials | Non-combat units ordered to evacuate 3831 | -9/Materials | Entered another Materials area 3831 | -8/Materials | Evolved 2 slots: Utility x1, Weapon x1 4718 | -8/Materials | Discovered new exit (range 12) 4736 | -8/Materials | Build established: Tank 5737 | -8/Materials | Identified exit to Factory 5792 | -8/Materials | Build established: Gunner 5831 | -8/Materials | First assault squad dispatched 5928 | -8/Materials | Entered Factory 5928 | -7/Factory | Evolved 2 slots: Propulsion x1, Weapon x1 6004 | -7/Factory | Identified exit to Lower Caves 6217 | -7/Factory | Entered Lower Caves 6696 | -7/Lower Caves | Encountered a Warlord checkpoint 7499 | -7/Lower Caves | Identified exit to Lower Caves 7642 | -7/Lower Caves | Learned location of 1 exit from Factory 7732 | -7/Lower Caves | Found Alien Artifact 7732 | -7/Lower Caves | Identified Core Expander 7732 | -7/Lower Caves | Installed Core Expander, added new Power slot 8054 | -7/Lower Caves | Entered another Lower Caves area 8127 | -7/Lower Caves | Discovered new exit (range 6) 9182 | -7/Lower Caves | Learned Factory stockpile data 9414 | -7/Lower Caves | Discovered new exit (range 13) 9681 | -7/Lower Caves | Attracted the attention of an 0b10 checkpoint 9696 | -7/Lower Caves | Entered Data Miner 9696 | -7/Data Miner | Discovered new exit (range 6) 9740 | -7/Data Miner | Met Data Miner 9788 | -7/Data Miner | Learned location of Section 7 (-3) 9788 | -7/Data Miner | Acquired the access code to Warlord's prototype stash 9824 | -7/Data Miner | Received God Mode back door access code from Data Miner 9961 | -7/Data Miner | Entered Proximity Caves 10329 | -6/Proximity Caves | Escorted by Enhanced Grunt 10455 | -6/Proximity Caves | Learned location of 1 exit from Factory 10950 | -6/Proximity Caves | Discovered new exit (range 5) 10965 | -6/Proximity Caves | Entered Factory 10965 | -6/Factory | Accompanied by 1 ally 10965 | -6/Factory | Evolved 2 slots: Utility x2 10966 | -6/Factory | Identified exit to Lower Caves 10966 | -6/Factory | Identified exit to Extension 10999 | -6/Factory | Repaired Med. Armor Plating 12238 | -6/Factory | Build established: Scavenger-Tank 12713 | -6/Factory | Fabricated Imp. Component Analysis Suite? 12830 | -6/Factory | Build established: Scavenger-Gunner 12842 | -6/Factory | Incoming investigation squad redirected 12919 | -6/Factory | Fabricated Lgt. Regenerative Plating? 13312 | -6/Factory | Incoming investigation squad redirected 13638 | -6/Factory | Discovered new exit (range 4) 13772 | -6/Factory | Build established: Gunner 14009 | -6/Factory | Fabricated Hvy. Siege Treads (x2) 14042 | -6/Factory | Incoming investigation squad redirected 14091 | -6/Factory | Noticed a derelict Sapper rigging charges 14558 | -6/Factory | Discovered new exit (range 32) 14561 | -6/Factory | Discovered exit to Extension (range 45) 14815 | -6/Factory | First assault squad dispatched 15177 | -6/Factory | Entered Extension 15411 | -6/Extension | Crushed by falling debris 15475 | -6/Extension | Rescued a captive Derelict 15542 | -6/Extension | Spotted B-75 Beast 15618 | -6/Extension | Destroyed B-75 Beast 15639 | -6/Extension | Spotted B-75 Beast 15690 | -6/Extension | Destroyed B-75 Beast 15777 | -6/Extension | Discovered new exit (range 3) 15827 | -6/Extension | Disrupted transfer network 16058 | -6/Extension | Discovered new exit (range 45) 16058 | -6/Extension | Discovered new exit (range 45) 16227 | -6/Extension | First assault squad dispatched 16244 | -6/Extension | Core integrity fell below 50% 16247 | -6/Extension | System corruption reached 10% 16249 | -6/Extension | Entered Cetus 16272 | -6/Cetus | Spotted Cetus Guard 16272 | -6/Cetus | Spotted Cetus Guard 16274 | -6/Cetus | Spotted Cetus Guard 16274 | -6/Cetus | Spotted Cetus Guard 16277 | -6/Cetus | Lost 6 parts (1p3u2w) 16319 | -6/Cetus | Destroyed Cetus Guard 16333 | -6/Cetus | Core integrity fell below 20% 16335 | -6/Cetus | Destroyed by S-27 Virus with Autogun Last Messages --------------- 16323_ Penetrated by Slug. 16324_ Slug penetrates Cetus Guard. 16324_ HV Slug penetrates Earth. 16325_ Penetrated by Slug. 16326_ HV Slug penetrates Cetus Guard. 16326_ Cetus Guard suffers critical hit (Destroy). 16326_ Penetrated by Slug. 16327_ Slug penetrates Cetus Guard. 16328_ Hyp. Gauss Rifle destroyed. 16328_ Penetrated by Slug. 16328_ Authchip [Propulsion] destroyed. 16329_ Dropped Huge Storage Unit. 16329_ Penetrated by Slug. 16329_ Dropped KE Penetrator. 16330_ Acquired Hyp. Gauss Rifle. 16332_ Penetrated by Slug. 16333_ C-30 ARC bursts open, deploying its payload. 16333_ S-27 Virus unfolds itself. 16333_ Penetrated by Slug. [Achievement: Tester] Map ----- +----------------------------------------------------+ | ???????????????????????????????????????????????? | | ???????????????????????????????????????????????? | | ???????????????????????????????????????????????? | | ???????????????????????????????????????????????? | | ??????????????????????? ?????????????????????? | | ??????????????????????? ?????????????????????? | | ??????????????????????? #????????????????????? | | ??????????????????????? #????????????????????? | | ??????????????????????? #????????????????????? | | ??????????????????????? #????????????????????? | | ??????????????????????? #????????????????????? | | ??????????????????????? #????????????????????? | | ??????????????????????? #????????????????????? | | ??????????????????????? #????????????????????? | | ??????????????????????# #????????????????????? | | ??????????????????????# #????????????????????? | | ??????????????????????# #????????????????????? | | ??????????????????????# #????????????????????? | | ??????????????????????# #????????????????????? | | ??????????????????????# #????????????????????? | | ??????????????????????# #????????????????????? | | ??????????????????????# #????????????????????? | | ??????????????????????# #????????????????????? | | ??????????????????????# #????????????????????? | | ??????????????????????# #????????????????????? | | ?????????????????????##@ #####????????????????? | | ????????????????####?# % #????????????????? | | ?????????????#### ### Y # ##???????????? | | ?############# #[ Y ; ##??????????? | | ?# [[! =%Y s s +?????????? | | ?# [!!| * s s w +?????????? | | ?# [! % +?????????? | | ?###### # # #######;; % ; ###?????????? | | ??????????????????# ## #;;##???????????? | | ??????????????????####### ##?##????????????? | | ?????????????????????????######????????????????? | | ???????????????????????????????????????????????? | | ???????????????????????????????????????????????? | | ???????????????????????????????????????????????? | | ???????????????????????????????????????????????? | | ???????????????????????????????????????????????? | | ???????????????????????????????????????????????? | | ???????????????????????????????????????????????? | | ???????????????????????????????????????????????? | | ???????????????????????????????????????????????? | | ???????????????????????????????????????????????? | | ???????????????????????????????????????????????? | | ???????????????????????????????????????????????? | | ???????????????????????????????????????????????? | | ???????????????????????????????????????????????? | +----------------------------------------------------+ Best States ------------- Heat Dissipation 37 Coolant Potential 65 Energy Generation 31 Energy Capacity 480 Matter Stores 300 Matter Capacity 300 Sight Range 22 Robot Scan Range 20 Terrain Scan Density 10 Jamming Range 12 Armor Coverage 1500 Resistance: KI 20 Resistance: TH 10 Evasion (%) 40 Targeting Accuracy 6 Recoil Reduction 4 Energy Filtering 30 Offensive Hacking 10 Authchip Count 1 Item Schematics ----------------- Combat Drone Bay | -7/Data Miner | Free Lgt. Regenerative Plating | -7/Data Miner | Free Biomechanical Wings | -7/Data Miner | Free Gravity Neutralizer | -7/Data Miner | Free Shock Maul | -7/Data Miner | Free Linear Gravjet | -7/Data Miner | Free Hyp. Gauss Cannon | -7/Data Miner | Free Imp. Component Analysis Suite | -7/Data Miner | Free Hvy. Flak Cannon | -7/Data Miner | Free Disruptor Cannon | -7/Data Miner | Free Imp. Kinecellerator | -7/Data Miner | Free Hvy. Siege Treads | -7/Data Miner | Free Robot Schematics ------------------ W-25 Informer | -7/Data Miner | Free G-47 Trooper | -7/Data Miner | Free G-50 Soldier | -7/Data Miner | Free B-48 Gladiator | -7/Data Miner | Free M-22 Extractor | -7/Data Miner | Free Y-54 Guardian | -7/Data Miner | Free Fabricated ------------ Imp. Component Analysis Suite | x1 | -6/Factory | Preloaded Lgt. Regenerative Plating | x1 | -6/Factory | Authchip Hvy. Siege Treads | x2 | -6/Factory | Authchip Alien Tech Used ----------------- Core Expander Achievements -------------- Tester Challenges ------------ None Game ------ Seed HeavyWardroneFlail Manual? 0 Play Time 02:44:53 Cumulative 59.1 hours Start 2022.04.09 @ 10:28:28 End 2022.04.19 @ 21:20:00 Sessions 3 Manual Loads 0 Difficulty Rogue Special Mode None Game No. 35 Rogue 35 Adventurer 0 Explorer 0 Win Type - Total 2 Types 2/0/0/0/0/0/0/0/0 Lore% 39 Gallery% 50 Achievement% 43 Wizard Run 0 Options --------- ASCII 1 Keyboard 1 Movement Vi Keybinds 0 Fullscreen 1 Font 18/X11 Map View 76x50 Tactical HUD 1 Map Filters NONE Filters NONE Steam 1 RUN: 3f895215-91a6-4246-93bd-10c1158ef65e